fUSD/lending_fUSD_20241225
["ID","MTS","AMOUNT","RATE_DAILY","PERIOD"]
[346631867,1735131094464,-500.0,0.00012705,2]
[346631868,1735131094474,-500.0,0.00012705,2]
[346631869,1735131094483,-500.0,0.00012705,2]
[346631870,1735131094493,-500.0,0.00012705,2]
[346631871,1735131094503,-500.0,0.00012705,2]
[346631872,1735131094513,-500.0,0.00012705,2]
[346631873,1735131094523,-500.0,0.00012705,2]
[346631874,1735131094533,-348.63,0.00012705,2]
[346631875,1735131094543,-500.0,0.00012705,2]
[346631876,1735131094553,-500.0,0.00012705,2]
[346631877,1735131094563,-800.99,0.00012705,2]
[346631878,1735131094573,-500.0,0.00012705,2]
[346631879,1735131094583,-500.0,0.00012705,2]
[346631880,1735131094593,-500.0,0.00012705,2]
[346631881,1735131094604,-594.31,0.00012705,2]
[346631882,1735131094613,-500.0,0.00012705,2]
[346631883,1735131094624,-733.99,0.00012705,2]
[346631884,1735131094634,-848.17,0.00012705,2]
[346631885,1735131094644,-500.0,0.00012705,2]
[346631886,1735131094654,-500.0,0.00012705,2]
[346631887,1735131094663,-500.0,0.00012705,2]
[346631888,1735131094673,-500.5,0.00012705,2]
[346631889,1735131094683,-500.0,0.00012705,2]
[346631890,1735131094692,-500.0,0.00012705,2]
[346631891,1735131094702,-261.60563201,0.00012705,2]
[346631892,1735131094711,-507.72,0.00012705,2]
[346631893,1735131094721,-645.07,0.00012705,2]
[346631894,1735131094730,-566.52,0.00012705,2]
[346631895,1735131094740,-492.89,0.00012705,2]
[346631896,1735131094749,-500.0,0.00012705,2]
[346631897,1735131094759,-506.8,0.00012705,2]
[346631898,1735131094768,-769.52,0.00012705,2]
[346631899,1735131094778,-685.33,0.00012705,2]
[346631900,1735131094787,-500.0,0.00012705,2]
[346631901,1735131094796,-500.0,0.00012705,2]
[346631902,1735131094806,-500.0,0.00012705,2]
[346631903,1735131094815,-541.95,0.00012705,2]
[346631904,1735131094825,-1365.53,0.00012705,2]
[346631905,1735131094835,-2537.2,0.00012705,2]
[346631906,1735131094845,-500.0,0.00012705,2]
[346631907,1735131094855,-500.0,0.00012705,2]
[346631908,1735131094865,-500.0,0.00012705,2]
[346631909,1735131094875,-500.0,0.00012705,2]
[346631910,1735131094890,-500.0,0.00012705,2]
[346631911,1735131094900,-18139.91,0.00012705,2]
[346631912,1735131094909,-719.59,0.00012705,2]
[346631913,1735131094919,-500.0,0.00012705,2]
[346631914,1735131094929,-1896.5,0.00012705,2]
[346631915,1735131094939,-480.26042443,0.00012705,2]
[346631916,1735131094949,-1054.66,0.00012705,2]
[346631917,1735131094960,-761.38,0.00012705,2]
[346631918,1735131094970,-500.0,0.00012705,2]
[346631919,1735131094979,-500.0,0.00012705,2]
[346631920,1735131094991,-500.0,0.00012705,2]
[346631921,1735131095001,-1677.18,0.00012705,2]
[346631922,1735131095010,-11637.58,0.00012705,2]
[346631923,1735131095020,-500.0,0.00012705,2]
[346631924,1735131095030,-1333.78,0.00012705,2]
[346631925,1735131095041,-1263.77,0.00012705,2]
[346631926,1735131095050,-500.0,0.00012705,2]
[346631927,1735131095060,-1223.08,0.00012705,2]
[346631928,1735131095070,-540.38,0.00012705,2]
[346631929,1735131095079,-789.1,0.00012705,2]
[346631930,1735131095089,-693.73,0.00012705,2]
[346631931,1735131095099,-2294.99,0.00012705,2]
[346631932,1735131095108,-500.0,0.00012705,2]
[346631933,1735131095117,-500.0,0.00012705,2]
[346631934,1735131095128,-500.0,0.00012705,2]
[346631935,1735131095137,-500.0,0.00012705,2]
[346631936,1735131095148,-1000.0,0.00012705,2]
[346631937,1735131095158,-500.0,0.00012705,2]
[346631938,1735131095167,-1118.61,0.00012705,2]
[346631939,1735131095177,-500.0,0.00012705,2]
[346631940,1735131095187,-500.0,0.00012705,2]
[346631941,1735131095197,-721.92,0.00012705,2]
[346631942,1735131095206,-500.0,0.00012705,2]
[346631943,1735131095215,-3201.18,0.00012705,2]
[346631944,1735131095225,-575.98,0.00012705,2]
[346631945,1735131095234,-1281.91,0.00012705,2]
[346631946,1735131095244,-500.0,0.00012705,2]
[346631947,1735131095254,-1278.42,0.00012705,2]
[346631948,1735131095263,-158.8695993,0.00012705,2]
[346631949,1735131095272,-674.03,0.00012705,2]
[346631950,1735131095281,-905.68,0.00012705,2]
[346631951,1735131095291,-983.02,0.00012706,2]
[346631952,1735131095301,-500.0,0.00012706,2]
[346631953,1735131095310,-500.0,0.00012706,2]
[346631954,1735131095320,-724.71,0.00012706,2]
[346631955,1735131095330,-357.43897487,0.00012706,2]
[346631956,1735131095339,-500.0,0.00012706,2]
[346631957,1735131095349,-635.49,0.00012723,2]
[346631958,1735131095358,-8132.22083547,0.00012736,2]
[346631959,1735131095368,-2283.0425964,0.00012739,2]
[346631960,1735131095378,-150.95925267,0.00012742,2]
[346631961,1735131095387,-389.0,0.000128,2]
[346631962,1735131095396,-230.0,0.000128,2]
[346631963,1735131095405,-255.56,0.00012804,2]
[346631964,1735131095414,-527.47,0.00012804,2]
[346631965,1735131095424,-527.47,0.00012804,2]
[346631966,1735131095434,-527.47,0.00012804,2]
[346631967,1735131095444,-527.47,0.00012804,2]
[346631968,1735131095453,-527.47,0.00012804,2]
[346631969,1735131095463,-527.66028236,0.00012804,2]
[346631970,1735131095472,-518182.13282589,0.00012805,2]
[346631971,1735131096084,-1330283.11938132,0.00012805,2]
[346631972,1735131096095,-823.0,0.00012836,2]
[346631973,1735131096104,-500.0,0.00012842,2]
[346631974,1735131096113,-1500.0,0.00012874,2]
[346631975,1735131096124,-500.0,0.0001288,2]
[346631976,1735131096134,-500.0,0.0001288,2]
[346631977,1735131096144,-500.0,0.0001288,2]
[346631978,1735131096154,-500.0,0.0001288,2]
[346631979,1735131096164,-175.95011123,0.000129,2]
[346631980,1735131096174,-26439.353501,0.000129,2]
[346631981,1735131096184,-152.76435091,0.000129,2]
[346631982,1735131096193,-152.76435089,0.000129,2]
[346631983,1735131096203,-152.76435089,0.000129,2]
[346631984,1735131096212,-152.76435089,0.000129,2]
[346631985,1735131096221,-152.76435089,0.000129,2]
[346631986,1735131096231,-314576.89916438,0.00012912,2]
[346631987,1735131096240,-314576.89916438,0.00012913,2]
[346631988,1735131096250,-66062.25021319,0.00012913,2]
[346631989,1735131096259,-945.30253629,0.00012915,2]
[346631990,1735131096269,-175.906182,0.00012916,2]
[346631991,1735131096279,-422.06099667,0.00012917,2]
[346631992,1735131096289,-234117.53363842,0.00012918,2]
[346631993,1735131096301,-3152.69843346,0.00012918,2]
[346631994,1735131096316,-774.6985844,0.00012918,2]
[346631995,1735131096839,-500.0,0.00010785,2]
[346631996,1735131096849,-251.233,0.00011242,2]
[346631997,1735131096859,-1106.49,0.00011334,2]
[346631998,1735131096870,-1106.49,0.00011608,2]
[346631999,1735131096881,-1106.49,0.00011882,2]
[346632000,1735131096894,-770.94,0.00012055,2]
[346632001,1735131096904,-437.22,0.00012055,2]
[346632002,1735131096914,-1106.49,0.00012156,2]
[346632003,1735131096923,-1106.49,0.0001243,2]
[346632004,1735131096933,-1106.49,0.00012704,2]
[346632005,1735131096943,-10076.75857636,0.00012918,2]
[346632006,1735131096955,-23820.95935565,0.00012918,2]
[346632007,1735131096967,-6964.76573693,0.00012918,2]
[346632008,1735131096980,-937.452366,0.00012918,2]
[346632009,1735131096992,-261.41531425,0.00012918,2]
[346632010,1735131097003,-4220.74957971,0.00012918,2]
[346632011,1735131097014,-1164.62227139,0.00012918,2]
[346632012,1735131097033,-29085.24530781,0.00012918,2]
[346632013,1735131097043,-153.0,0.00012919,2]
[346632014,1735131097053,-153.0,0.00012919,2]
[346632015,1735131097062,-153.0,0.00012919,2]
[346632016,1735131097072,-153.0,0.00012919,2]
[346632017,1735131097081,-153.0,0.00012919,2]
[346632018,1735131097091,-153.0,0.00012919,2]
[346632019,1735131097100,-153.0,0.00012919,2]
[346632020,1735131097109,-422.06099667,0.00012919,2]
[346632021,1735131097118,-61704.65285842,0.0001292,2]
[346632022,1735131097131,-4357.59735477,0.0001292,2]
[346632023,1735131097140,-1871.76434261,0.00012921,2]
[346632024,1735131097151,-245730.96436882,0.00012921,2]
[346632025,1735131097163,-66974.17045295,0.00012921,2]
[346632026,1735131097171,-8820.36692576,0.00012922,2]
[346632027,1735131097180,-37311.37704431,0.00012922,2]
[346632028,1735131097190,-66062.25021319,0.00012923,2]
[346632029,1735131097199,-945.30253629,0.00012924,2]
[346632030,1735131097209,-66062.25021319,0.00012925,2]
[346632031,1735131097219,-41969.34343831,0.00012925,2]
[346632032,1735131097228,-1080.95957223,0.00012925,2]
[346632033,1735131097237,-66062.25021319,0.00012925,2]
[346632034,1735131097247,-422.06099667,0.00012926,2]
[346632035,1735131097256,-12078.27301381,0.00012929,2]
[346632036,1735131097274,-3155.62038579,0.00012929,2]
[346632037,1735131097285,-204249.51414004,0.00012929,2]
[346632038,1735131097296,-279.714,0.00012929,2]
[346632039,1735131097308,-44796.00034188,0.00012929,2]
[346632040,1735131097319,-361.45361106,0.00012929,2]
[346632041,1735131097331,-1034.3555,0.00012929,2]
[346632042,1735131097342,-1024.40731465,0.00012929,2]
[346632043,1735131097353,-371.99000024,0.00012929,2]
[346632044,1735131097364,-331.2000025,0.00012929,2]
[346632045,1735131097376,-250.78536569,0.00012929,2]
[346632046,1735131097387,-10942.7135776,0.00012929,2]
[346632047,1735131097399,-11586.07753166,0.00012929,2]
[346632048,1735131097410,-13520.5,0.00012929,2]
[346632049,1735131097421,-8190.9999999,0.00012929,2]
[346632050,1735131097435,-800.86626729,0.00012929,2]
[346632051,1735131097515,-486.93847441,0.00012929,2]
[346632052,1735131097527,-492.67199996,0.00012929,2]
[346632053,1735131097538,-451.63100164,0.00012929,2]
[346632054,1735131097550,-171.18663626,0.00012929,2]
[346632055,1735131097560,-5307.62066937,0.0001293,2]
[346632056,1735131097967,-522.01898272,0.00010785,2]
[346632057,1735131097979,-19.68201516,0.00010785,2]
[346632058,1735131097989,-476.62013684,0.00010786,2]
[346632059,1735131098001,-23.37986316,0.00010786,2]
[346632060,1735131098011,-500.0,0.0001106,2]
[346632061,1735131098021,-150.0,0.00011242,2]
[346632062,1735131098030,-1101.0,0.00011242,2]
[346632063,1735131098039,-99.68983684,0.000129,2]
[346632064,1735131098052,-53.07451405,0.000129,2]
[346632065,1735131098061,-3847.68324778,0.0001293,2]
[346632066,1735131098072,-9309.10477623,0.0001293,2]
[346632067,1735131098083,-511.95,0.0001293,2]
[346632068,1735131098094,-13038.5,0.0001293,2]
[346632069,1735131098105,-431.885,0.0001293,2]
[346632070,1735131098116,-826.84503696,0.0001293,2]
[346632071,1735131098130,-505.93244514,0.0001293,2]
[346632072,1735131098141,-693.71658246,0.0001293,2]
[346632073,1735131098152,-837.98971648,0.0001293,2]
[346632074,1735131098163,-4647.77442738,0.0001293,2]
[346632075,1735131098174,-362.81046048,0.0001293,2]
[346632076,1735131098185,-556.27274948,0.0001293,2]
[346632077,1735131098196,-3415.66449189,0.0001293,2]
[346632078,1735131098207,-302.0,0.0001293,2]
[346632079,1735131098218,-4119.16540577,0.0001293,2]
[346632080,1735131098228,-957.52,0.0001293,2]
[346632081,1735131098240,-1600.0,0.0001293,2]
[346632082,1735131098250,-2307.34654865,0.0001293,2]
[346632083,1735131098262,-683.4662066,0.0001293,2]
[346632084,1735131098273,-545.34982753,0.0001293,2]
[346632085,1735131098284,-362.44959872,0.0001293,2]
[346632086,1735131098295,-16098.05822187,0.0001293,2]
[346632087,1735131098311,-325.95661418,0.0001293,2]
[346632088,1735131098322,-7044.13978325,0.0001293,2]
[346632089,1735131098333,-80313.82007255,0.0001293,2]
[346632090,1735131098344,-1936.68047239,0.0001293,2]
[346632091,1735131098355,-12425.34634804,0.0001293,2]
[346632092,1735131098366,-16650.0,0.0001293,2]
[346632093,1735131098377,-9514.47,0.0001293,2]
[346632094,1735131098388,-410.0,0.0001293,2]
[346632095,1735131098399,-6800.0,0.0001293,2]
[346632096,1735131098410,-2358.24575304,0.0001293,2]
[346632097,1735131098421,-13437.90495304,0.0001293,2]
[346632098,1735131098431,-16166.72813311,0.0001293,2]
[346632099,1735131098442,-269.50884,0.0001293,2]
[346632100,1735131098453,-45696.5742154,0.0001293,2]
[346632101,1735131098464,-7643.42167387,0.0001293,2]
[346632102,1735131098475,-4862.26654661,0.0001293,2]
[346632104,1735131678447,582.84,8.219e-05,2]
[346632106,1735131812144,458.5,9.554e-05,2]
[346632107,1735131905481,163.66,9.545e-05,2]
[346632108,1735131975795,250.0,9.571e-05,2]
[346632121,1735132048938,250.0,9.56e-05,2]
[346632199,1735132232526,-1000.0,9.608e-05,2]
[346632200,1735132232537,-742.37,9.743e-05,2]
[346632201,1735132232546,-9184.18,9.8e-05,2]
[346632202,1735132232555,-1050.0,9.8e-05,2]
[346632203,1735132232565,-250.0,9.852e-05,2]
[346632204,1735132232574,-1106.45117471,9.852e-05,2]
[346632205,1735132232583,-871.16683691,0.0001,2]
[346632206,1735132232621,-1525.15327041,0.0001,2]
[346632207,1735132232678,-6334.65989268,0.0001,2]
[346632208,1735132232688,-1050.0,0.0001,2]
[346632209,1735132232697,-248.96,0.0001,2]
[346632210,1735132232706,-248.11,0.0001,2]
[346632211,1735132232715,-246.45,0.0001,2]
[346632212,1735132232725,-253.84,0.0001,2]
[346632213,1735132232734,-246.87,0.0001,2]
[346632214,1735132232743,-245.13,0.0001,2]
[346632215,1735132232752,-252.13,0.0001,2]
[346632216,1735132232762,-252.45,0.0001,2]
[346632217,1735132232771,-251.29,0.00010001,2]
[346632218,1735132232780,-253.6,0.00010002,2]
[346632220,1735132232790,-247.09,0.00010004,2]
[346632222,1735132232799,-247.06,0.00010007,2]
[346632223,1735132232808,-245.24,0.00010015,2]
[346632226,1735132232817,-250.86,0.00010029,2]
[346632228,1735132232827,-245.2,0.00010058,2]
[346632229,1735132232836,-248.99,0.00010117,2]
[346632231,1735132232846,-587.9,0.00010137,2]
[346632233,1735132232855,-253.67,0.00010232,2]
[346632235,1735132232865,-582.84,0.00010459,2]
[346632238,1735132232875,-247.97,0.00010465,2]
[346632239,1735132232885,-943.2398,0.00010587,2]
[346632241,1735132232894,-1000.0,0.00010645,2]
[346632243,1735132232903,-82804.1682,0.00010685,2]
[346632245,1735132232913,-422.9386,0.00010685,2]
[346632247,1735132232922,-4295.5834,0.00010688,2]
[346632249,1735132232931,-500.0,0.00010744,2]
[346632251,1735132232941,-500.0,0.00010744,2]
[346632253,1735132232950,-500.0,0.00010744,2]
[346632255,1735132232959,-500.0,0.00010744,2]
[346632257,1735132232968,-500.0,0.00010744,2]
[346632259,1735132232978,-500.0,0.00010744,2]
[346632261,1735132232987,-500.0,0.00010744,2]
[346632263,1735132232996,-565.45,0.00010744,2]
[346632265,1735132233005,-500.0,0.00010744,2]
[346632267,1735132233015,-500.0,0.00010744,2]
[346632269,1735132233024,-500.0,0.00010744,2]
[346632271,1735132233033,-500.0,0.00010744,2]
[346632273,1735132233042,-832.59,0.00010744,2]
[346632275,1735132233050,-500.0,0.00010744,2]
[346632277,1735132233060,-500.0,0.00010744,2]
[346632279,1735132233068,-387.31,0.00010744,2]
[346632281,1735132233078,-513.01,0.00010744,2]
[346632283,1735132233087,-500.0,0.00010744,2]
[346632285,1735132233096,-533.99,0.00010744,2]
[346632287,1735132233105,-500.0,0.00010744,2]
[346632289,1735132233115,-500.0,0.00010744,2]
[346632291,1735132233124,-500.0,0.00010744,2]
[346632293,1735132233134,-500.0,0.00010744,2]
[346632295,1735132233143,-500.0,0.00010744,2]
[346632297,1735132233152,-500.0,0.00010744,2]
[346632299,1735132233162,-500.0,0.00010744,2]
[346632301,1735132233171,-500.0,0.00010744,2]
[346632303,1735132233184,-500.0,0.00010744,2]
[346632305,1735132233194,-500.0,0.00010744,2]
[346632307,1735132233203,-500.0,0.00010744,2]
[346632309,1735132233212,-500.0,0.00010744,2]
[346632311,1735132233222,-500.0,0.00010744,2]
[346632313,1735132233231,-500.0,0.00010744,2]
[346632315,1735132233240,-500.0,0.00010744,2]
[346632317,1735132233250,-500.0,0.00010744,2]
[346632319,1735132233260,-500.0,0.00010744,2]
[346632321,1735132233269,-500.0,0.00010744,2]
[346632323,1735132233278,-500.0,0.00010744,2]
[346632324,1735132233288,-852.28,0.00010744,2]
[346632327,1735132233297,-500.0,0.00010744,2]
[346632328,1735132233307,-9118.0,0.00010744,2]
[346632330,1735132233316,-603.79,0.00010744,2]
[346632332,1735132233325,-655.35,0.00010744,2]
[346632334,1735132233334,-166.64776111,0.00010744,2]
[346632336,1735132233344,-500.0,0.00010744,2]
[346632338,1735132233353,-500.0,0.00010744,2]
[346632340,1735132233363,-500.0,0.00010744,2]
[346632342,1735132233373,-596.55,0.00010748,2]
[346632344,1735132233382,-500.0,0.00010748,2]
[346632346,1735132233391,-500.0,0.00010748,2]
[346632348,1735132233401,-500.0,0.00010748,2]
[346632350,1735132233410,-79895.0,0.00010749,2]
[346632352,1735132233420,-458.5,0.00010749,2]
[346632354,1735132233429,-626.01,0.00010784,2]
[346632356,1735132233439,-500.0,0.00010784,2]
[346632358,1735132233450,-500.0,0.00010784,2]
[346632360,1735132233459,-984.04,0.00010784,2]
[346632362,1735132233469,-991.93,0.00010784,2]
[346632364,1735132233479,-1907.29,0.00010784,2]
[346632366,1735132233488,-500.0,0.00010784,2]
[346632368,1735132233498,-4510.57,0.00010784,2]
[346632370,1735132233507,-762.34,0.00010784,2]
[346632372,1735132233516,-1165.17,0.00010784,2]
[346632374,1735132233525,-892.23,0.00010784,2]
[346632376,1735132233534,-1857.86,0.00010784,2]
[346632378,1735132233544,-500.0,0.00010784,2]
[346632380,1735132233553,-826.67,0.00010784,2]
[346632382,1735132233562,-632.23,0.00010784,2]
[346632384,1735132233571,-1849.26,0.00010784,2]
[346632385,1735132233580,-6069.73,0.00010784,2]
[346632386,1735132233589,-500.0,0.00010784,2]
[346632387,1735132233598,-578.13,0.00010784,2]
[346632388,1735132233608,-500.0,0.00010784,2]
[346632389,1735132233617,-500.0,0.00010784,2]
[346632390,1735132233627,-649.12,0.00010784,2]
[346632391,1735132233636,-2744.89,0.00010784,2]
[346632392,1735132233645,-500.0,0.00010784,2]
[346632393,1735132233655,-707.36,0.00010784,2]
[346632394,1735132233665,-1340.55,0.00010784,2]
[346632395,1735132233674,-500.0,0.00010784,2]
[346632396,1735132233683,-500.0,0.00010785,2]
[346632397,1735132233692,-500.0,0.00010785,2]
[346632398,1735132233702,-500.0,0.00010785,2]
[346632399,1735132233711,-500.0,0.00010785,2]
[346632400,1735132233722,-187.92,0.00010785,2]
[346632401,1735132233732,-500.0,0.00010785,2]
[346632402,1735132233741,-556.37485773,0.00010785,2]
[346632403,1735132233750,-500.0,0.00010785,2]
[346632404,1735132233760,-500.0,0.00010785,2]
[346632405,1735132233769,-500.0,0.00010785,2]
[346632406,1735132233778,-500.0,0.00010785,2]
[346632407,1735132233787,-500.0,0.00010785,2]
[346632408,1735132233796,-500.0,0.00010785,2]
[346632409,1735132233805,-500.0,0.00010785,2]
[346632410,1735132233815,-500.0,0.00010785,2]
[346632411,1735132233824,-500.0,0.00010785,2]
[346632412,1735132233833,-500.0,0.00010785,2]
[346632413,1735132233842,-500.0,0.00010785,2]
[346632414,1735132233852,-500.0,0.00010785,2]
[346632415,1735132233861,-889.18,0.00010785,2]
[346632416,1735132233871,-500.0,0.00010785,2]
[346632417,1735132233881,-500.0,0.00010785,2]
[346632418,1735132233891,-500.0,0.00010785,2]
[346632419,1735132233901,-500.0,0.00010785,2]
[346632420,1735132233910,-329.80604893,0.00010785,2]
[346632436,1735132240307,-440.36,0.00010748,2]
[346632438,1735132240317,-500.0,0.00010784,2]
[346632440,1735132240326,-1183.64,0.00010784,2]
[346632441,1735132240336,-170.19395107,0.00010785,2]
[346632443,1735132240345,-500.0,0.00010785,2]
[346632444,1735132240354,-578.33635162,0.00010785,2]
[346632445,1735132240365,-500.0,0.00010785,2]
[346632446,1735132240376,-759.32,0.00010785,2]
[346632447,1735132240385,-1328.67,0.00010785,2]
[346632448,1735132240394,-754.06,0.00010785,2]
[346632449,1735132240404,-3885.85,0.00010785,2]
[346632450,1735132240414,-657.64,0.00010785,2]
[346632451,1735132240427,-2329.02,0.00010785,2]
[346632452,1735132240437,-891.39,0.00010785,2]
[346632453,1735132240446,-500.0,0.00010785,2]
[346632454,1735132240456,-969.57,0.00010785,2]
[346632455,1735132240465,-697.63,0.00010785,2]
[346632456,1735132240475,-604.4,0.00010785,2]
[346632457,1735132240484,-1536.34,0.00010785,2]
[346632458,1735132240493,-723.82,0.00010785,2]
[346632459,1735132240502,-1578.85,0.00010785,2]
[346632460,1735132240512,-793.41,0.00010785,2]
[346632461,1735132240521,-2776.06,0.00010785,2]
[346632462,1735132240530,-763.98,0.00010785,2]
[346632463,1735132240539,-2486.78,0.00010785,2]
[346632464,1735132240548,-795.46,0.00010785,2]
[346632465,1735132240557,-500.0,0.00010785,2]
[346632466,1735132240566,-2437.85798985,0.00010785,2]
[346632467,1735132240577,-3012.80201015,0.00010785,2]
[346632468,1735132240586,-1204.63,0.00010785,2]
[346632469,1735132240594,-863.43,0.00010785,2]
[346632470,1735132240603,-647.35,0.00010785,2]
[346632471,1735132240612,-500.0,0.00010785,2]
[346632472,1735132240622,-859.8,0.00010785,2]
[346632473,1735132240631,-670.11,0.00010785,2]
[346632474,1735132240640,-1560.65,0.00010785,2]
[346632475,1735132240649,-500.0,0.00010786,2]
[346632476,1735132240659,-513.74326195,0.00010786,2]
[346632477,1735132240668,-1000.0,0.00010809,2]
[346632478,1735132240677,-8693.08710157,0.00010832,2]
[346632479,1735132240686,-800.0,0.00010876,2]
[346632480,1735132240695,-500.0,0.00010876,2]
[346632481,1735132240704,-2300.0,0.00010876,2]
[346632482,1735132240713,-6594.4927,0.00010918,2]
[346632483,1735132240723,-2689.0141,0.00010918,2]
[346632484,1735132240732,-1890.76505192,0.00010918,2]
[346632485,1735132240744,-348.07808902,0.00010918,2]
[346632486,1735132240762,-621.99,0.00010785,2]
[346632487,1735132240772,-1748.59391407,0.00010918,2]
[346632488,1735132240800,-1012.56294499,0.00010918,2]
[346632489,1735132240809,-400.0,0.00010986,2]
[346632490,1735132240818,-3730.83344288,0.00011008,2]
[346632491,1735132240830,-2372.11361504,0.00011008,2]
[346632492,1735132240841,-5911.31849916,0.00011008,2]
[346632493,1735132240850,-366.39,0.00011017,2]
[346632494,1735132240859,-500.0,0.00011017,2]
[346632495,1735132240869,-500.0,0.00011017,2]
[346632496,1735132240878,-500.0,0.00011017,2]
[346632497,1735132240888,-500.0,0.00011017,2]
[346632498,1735132240898,-500.0,0.00011017,2]
[346632499,1735132240907,-500.0,0.00011017,2]
[346632500,1735132240917,-500.0,0.00011017,2]
[346632501,1735132240926,-500.0,0.00011017,2]
[346632502,1735132240935,-500.0,0.00011017,2]
[346632503,1735132240944,-500.0,0.00011017,2]
[346632504,1735132240953,-500.0,0.00011017,2]
[346632505,1735132240963,-500.0,0.00011017,2]
[346632506,1735132240972,-500.0,0.00011017,2]
[346632507,1735132240982,-500.0,0.00011017,2]
[346632508,1735132240991,-500.0,0.00011017,2]
[346632509,1735132241000,-413.05,0.00011017,2]
[346632510,1735132241009,-500.0,0.00011017,2]
[346632511,1735132241019,-500.0,0.00011017,2]
[346632512,1735132241028,-500.0,0.00011017,2]
[346632513,1735132241036,-500.0,0.00011017,2]
[346632514,1735132241045,-500.0,0.00011017,2]
[346632515,1735132241055,-500.0,0.00011017,2]
[346632516,1735132241064,-500.0,0.00011017,2]
[346632517,1735132241073,-500.0,0.00011017,2]
[346632518,1735132241082,-500.0,0.00011017,2]
[346632519,1735132241091,-500.0,0.00011017,2]
[346632520,1735132241100,-500.0,0.00011017,2]
[346632521,1735132241110,-500.0,0.00011017,2]
[346632522,1735132241121,-500.0,0.00011017,2]
[346632523,1735132241130,-500.0,0.00011017,2]
[346632524,1735132241141,-500.0,0.00011017,2]
[346632525,1735132241151,-500.0,0.00011017,2]
[346632526,1735132241160,-500.0,0.00011017,2]
[346632527,1735132241169,-500.0,0.00011017,2]
[346632528,1735132241181,-500.0,0.00011017,2]
[346632529,1735132241190,-500.0,0.00011017,2]
[346632530,1735132241200,-500.0,0.00011017,2]
[346632531,1735132241210,-26.08048796,0.00011017,2]
[346632532,1735132241223,-209.10951204,0.00011017,2]
[346632533,1735132241232,-500.0,0.00011017,2]
[346632534,1735132241241,-318.32799058,0.00011017,2]
[346632535,1735132241254,-181.67200942,0.00011017,2]
[346632536,1735132241265,-500.0,0.00011017,2]
[346632537,1735132241274,-500.0,0.00011017,2]
[346632538,1735132241283,-182.01633987,0.00011017,2]
[346632539,1735132241294,-429.83366013,0.00011017,2]
[346632540,1735132241303,-503.96,0.00011017,2]
[346632541,1735132241313,-500.0,0.00011017,2]
[346632542,1735132241322,-500.0,0.00011017,2]
[346632543,1735132241331,-500.0,0.00011017,2]
[346632544,1735132241341,-500.0,0.00011017,2]
[346632545,1735132241351,-500.0,0.00011017,2]
[346632546,1735132241360,-500.0,0.00011017,2]
[346632547,1735132241372,-447.91400211,0.00011017,2]
[346632548,1735132241382,-516.97,0.00011017,2]
[346632549,1735132241392,-500.0,0.00011017,2]
[346632550,1735132241401,-500.0,0.00011017,2]
[346632551,1735132241410,-500.0,0.00011017,2]
[346632552,1735132241420,-500.0,0.00011017,2]
[346632553,1735132241429,-500.0,0.00011017,2]
[346632554,1735132241438,-500.0,0.00011017,2]
[346632555,1735132241447,-500.0,0.00011017,2]
[346632556,1735132241456,-500.73,0.00011017,2]
[346632557,1735132241465,-500.0,0.00011017,2]